[Event "UK Open Blitz Championships 2024 - London Qualifier"]
[Site "London, United Kingdom"]
[Date "2024.09.21"]
[Round "10.5"]
[White "Badacsonyi, Stanley"]
[Black "Mirzoeva, Elmira"]
[Result "1/2-1/2"]
[TimeControl "3 minutes + 2 seconds incr. from move 1"]
[WhiteTitle "FM"]
[BlackTitle "WGM"]
[WhiteFideId "486973"]
[BlackFideId "4127951"]
[WhiteElo "2332"]
[BlackElo "2094"]

1. d4 {[%clk 00:03:03]} {[%emt 00:00:01]} d5 {[%clk 00:03:01]} {[%emt
00:00:04]} 2. c4 {[%clk 00:03:03]} {[%emt 00:00:02]} c6 {[%clk 00:03:01]}
{[%emt 00:00:01]} 3. cxd5 {[%clk 00:03:04]} {[%emt 00:00:01]} cxd5 {[%clk
00:03:02]} 4. Bf4 {[%clk 00:03:06]} {[%emt 00:00:01]} Nc6 {[%emt 00:00:04]} 5.
e3 {[%clk 00:03:07]} Nf6 {[%clk 00:02:55]} {[%emt 00:00:07]} 6. Nc3 {[%clk
00:03:07]} {[%emt 00:00:01]} a6 {[%clk 00:02:53]} {[%emt 00:00:04]} 7. Be2
{[%clk 00:03:07]} {[%emt 00:00:01]} Bf5 {[%clk 00:02:51]} {[%emt 00:00:05]} 8.
Nf3 {[%clk 00:03:08]} {[%emt 00:00:01]} e6 {[%clk 00:02:51]} {[%emt 00:00:02]}
9. Qb3 {[%clk 00:03:08]} Bb4 {[%clk 00:02:38]} {[%emt 00:00:15]} 10. Ne5 {[%clk
00:02:50]} {[%emt 00:00:21]} Qe7 {[%clk 00:02:10]} {[%emt 00:00:29]} 11. O-O
{[%clk 00:02:45]} {[%emt 00:00:06]} O-O {[%clk 00:02:00]} {[%emt 00:00:12]} 12.
Rac1 {[%clk 00:02:46]} {[%emt 00:00:01]} Rac8 {[%clk 00:01:40]} {[%emt
00:00:21]} 13. Na4 {[%clk 00:02:26]} {[%emt 00:00:23]} Na5 {[%clk 00:01:28]}
{[%emt 00:00:14]} 14. Qd1 {[%clk 00:02:18]} {[%emt 00:00:10]} b5 {[%clk
00:01:00]} {[%emt 00:00:31]} 15. Nc3 {[%clk 00:01:45]} {[%emt 00:00:35]} Nc4
{[%clk 00:01:00]} {[%emt 00:00:02]} 16. Bxc4 {[%clk 00:01:43]} {[%emt
00:00:04]} bxc4 {[%clk 00:01:01]} {[%emt 00:00:02]} 17. Qa4 {[%clk 00:01:44]}
Qb7 {[%clk 00:00:58]} {[%emt 00:00:04]} 18. Bg5 {[%clk 00:01:24]} {[%emt
00:00:22]} Be7 {[%clk 00:00:44]} {[%emt 00:00:16]} 19. b3 {[%clk 00:01:19]}
{[%emt 00:00:07]} cxb3 {[%clk 00:00:43]} {[%emt 00:00:04]} 20. axb3 {[%clk
00:01:17]} {[%emt 00:00:03]} Rc7 {[%clk 00:00:38]} {[%emt 00:00:08]} 21. Ne2
{[%clk 00:01:09]} {[%emt 00:00:10]} Rfc8 {[%clk 00:00:38]} {[%emt 00:00:01]} 22.
Rxc7 {[%clk 00:01:09]} {[%emt 00:00:02]} Rxc7 {[%clk 00:00:35]} {[%emt
00:00:05]} 23. Bxf6 {[%clk 00:01:04]} {[%emt 00:00:07]} gxf6 {[%clk 00:00:30]}
{[%emt 00:00:07]} 24. Qe8+ {[%clk 00:01:05]} {[%emt 00:00:01]} Bf8 {[%clk
00:00:31]} 25. Nf3 {[%clk 00:00:58]} {[%emt 00:00:10]} Qxb3 {[%clk 00:00:31]}
{[%emt 00:00:02]} 26. Nf4 {[%clk 00:00:48]} {[%emt 00:00:12]} Qb4 {[%clk
00:00:28]} {[%emt 00:00:04]} 27. Nh4 {[%clk 00:00:42]} {[%emt 00:00:08]} Bg6
{[%clk 00:00:27]} {[%emt 00:00:03]} 28. h3 {[%clk 00:00:39]} {[%emt 00:00:06]}
Qe7 {[%clk 00:00:18]} {[%emt 00:00:10]} 29. Qa8 {[%clk 00:00:40]} {[%emt
00:00:01]} Ra7 {[%clk 00:00:19]} {[%emt 00:00:02]} 30. Qb8 {[%clk 00:00:41]}
{[%emt 00:00:01]} Qc7 {[%clk 00:00:18]} {[%emt 00:00:02]} 31. Qe8 {[%clk
00:00:40]} {[%emt 00:00:04]} Qe7 {[%clk 00:00:18]} {[%emt 00:00:01]} 32. Qb8
{[%clk 00:00:41]} {[%emt 00:00:02]} Qc7 {[%clk 00:00:18]} {[%emt 00:00:03]} 33.
Qe8 {[%clk 00:00:42]} {[%emt 00:00:01]} Qe7 {[%clk 00:00:18]} {[%emt 00:00:01]}
1/2-1/2

[Event "UK Open Blitz Championships 2024 - London Qualifier"]
[Site "London, United Kingdom"]
[Date "2024.09.21"]
[Round "11.1"]
[White "Gasanov, Eldar"]
[Black "Royal, Shreyas"]
[Result "1-0"]
[TimeControl "3 minutes + 2 seconds incr. from move 1"]
[WhiteTitle "GM"]
[BlackTitle "IM"]
[WhiteFideId "14104466"]
[BlackFideId "448869"]
[WhiteElo "2467"]
[BlackElo "2331"]

1. c4 {[%clk 00:03:02]} {[%emt 00:00:01]} c5 {[%clk 00:03:03]} {[%emt
00:00:02]} 2. g3 {[%clk 00:02:59]} {[%emt 00:00:04]} g6 {[%clk 00:03:04]}
{[%emt 00:00:01]} 3. Bg2 {[%clk 00:03:00]} {[%emt 00:00:02]} Bg7 {[%clk
00:03:05]} {[%emt 00:00:01]} 4. Nc3 {[%clk 00:03:00]} {[%emt 00:00:01]} Nc6
{[%clk 00:03:06]} {[%emt 00:00:01]} 5. d3 {[%clk 00:03:00]} {[%emt 00:00:02]}
Nf6 {[%clk 00:03:02]} {[%emt 00:00:06]} 6. Nh3 {[%clk 00:02:39]} {[%emt
00:00:22]} O-O {[%clk 00:02:53]} {[%emt 00:00:12]} 7. Nf4 {[%clk 00:02:35]}
{[%emt 00:00:05]} a6 {[%clk 00:02:54]} {[%emt 00:00:02]} 8. O-O {[%clk
00:02:25]} {[%emt 00:00:12]} Rb8 {[%clk 00:02:55]} {[%emt 00:00:01]} 9. b3
{[%clk 00:02:24]} {[%emt 00:00:03]} Nh5 {[%clk 00:02:38]} {[%emt 00:00:18]} 10.
Qe1 {[%clk 00:01:36]} {[%emt 00:00:50]} Nxf4 {[%clk 00:02:26]} {[%emt
00:00:14]} 11. Bxf4 {[%clk 00:01:36]} {[%emt 00:00:02]} d6 {[%clk 00:02:28]} 12.
Qd2 {[%clk 00:01:30]} {[%emt 00:00:07]} Re8 {[%clk 00:02:28]} {[%emt 00:00:02]}
13. Bh6 {[%clk 00:01:20]} {[%emt 00:00:12]} Bh8 {[%clk 00:02:29]} {[%emt
00:00:01]} 14. Rad1 {[%clk 00:01:12]} {[%emt 00:00:10]} Bd7 {[%clk 00:02:30]}
{[%emt 00:00:01]} 15. h3 {[%clk 00:01:00]} {[%emt 00:00:14]} b5 {[%clk
00:02:30]} {[%emt 00:00:02]} 16. Ne4 {[%clk 00:00:56]} {[%emt 00:00:05]} Qc8
{[%clk 00:02:19]} {[%emt 00:00:14]} 17. Kh2 {[%clk 00:00:56]} {[%emt 00:00:03]}
bxc4 {[%clk 00:02:18]} {[%emt 00:00:03]} 18. dxc4 {[%clk 00:00:56]} {[%emt
00:00:02]} Bf5 {[%clk 00:02:09]} {[%emt 00:00:11]} 19. g4 {[%clk 00:00:50]}
{[%emt 00:00:07]} Bxe4 {[%clk 00:02:06]} {[%emt 00:00:05]} 20. Bxe4 {[%clk
00:00:51]} {[%emt 00:00:01]} a5 {[%clk 00:02:03]} {[%emt 00:00:05]} 21. Bxc6
{[%clk 00:00:44]} {[%emt 00:00:10]} Qxc6 {[%clk 00:02:04]} 22. Qxa5 {[%clk
00:00:45]} {[%emt 00:00:01]} Rb4 {[%clk 00:01:54]} {[%emt 00:00:12]} 23. Qa3
{[%clk 00:00:31]} {[%emt 00:00:16]} Ra8 {[%clk 00:01:53]} {[%emt 00:00:03]} 24.
Qc1 {[%clk 00:00:32]} Rxa2 {[%clk 00:01:51]} {[%emt 00:00:05]} 25. Qe3 {[%clk
00:00:33]} Be5+ {[%clk 00:01:48]} {[%emt 00:00:04]} 26. Qxe5 {[%clk 00:00:33]}
{[%emt 00:00:02]} Qb7 {[%clk 00:01:39]} {[%emt 00:00:12]} 27. Qg7# {[%clk
00:00:33]} {[%emt 00:00:01]} 1-0

[Event "UK Open Blitz Championships 2024 - London Qualifier"]
[Site "London, United Kingdom"]
[Date "2024.09.21"]
[Round "11.2"]
[White "Ghasi, Ameet K"]
[Black "Roberson, Peter T"]
[Result "1/2-1/2"]
[TimeControl "3 minutes + 2 seconds incr. from move 1"]
[WhiteTitle "IM"]
[BlackTitle "IM"]
[WhiteFideId "409200"]
[BlackFideId "412384"]
[WhiteElo "2524"]
[BlackElo "2346"]

1. Nf3 {[%clk 00:03:02]} {[%emt 00:00:02]} c5 {[%clk 00:03:03]} {[%emt
00:00:01]} 2. g3 {[%clk 00:03:01]} {[%emt 00:00:03]} g6 {[%clk 00:03:04]}
{[%emt 00:00:01]} 3. Bg2 {[%clk 00:03:02]} {[%emt 00:00:01]} Bg7 {[%clk
00:03:05]} {[%emt 00:00:01]} 4. O-O {[%clk 00:02:59]} {[%emt 00:00:03]} Nc6
{[%clk 00:03:06]} {[%emt 00:00:03]} 5. e4 {[%clk 00:02:46]} {[%emt 00:00:15]}
Nf6 {[%clk 00:02:56]} {[%emt 00:00:12]} 6. d3 {[%clk 00:02:44]} {[%emt
00:00:04]} O-O {[%clk 00:02:53]} {[%emt 00:00:05]} 7. Re1 {[%clk 00:02:42]}
{[%emt 00:00:05]} d6 {[%clk 00:02:51]} {[%emt 00:00:04]} 8. c3 {[%clk
00:02:42]} {[%emt 00:00:01]} e5 {[%clk 00:02:29]} {[%emt 00:00:25]} 9. a4
{[%clk 00:02:25]} {[%emt 00:00:18]} Be6 {[%clk 00:02:19]} {[%emt 00:00:12]} 10.
Na3 {[%clk 00:02:07]} {[%emt 00:00:20]} h6 {[%clk 00:02:10]} {[%emt 00:00:12]}
11. Nc4 {[%clk 00:02:01]} {[%emt 00:00:08]} Qc7 {[%clk 00:01:51]} {[%emt
00:00:21]} 12. Ne3 {[%clk 00:01:53]} {[%emt 00:00:09]} a6 {[%clk 00:01:34]}
{[%emt 00:00:19]} 13. Bd2 {[%clk 00:01:47]} {[%emt 00:00:09]} b5 {[%clk
00:01:34]} {[%emt 00:00:02]} 14. b4 {[%clk 00:01:30]} {[%emt 00:00:20]} cxb4
{[%clk 00:01:17]} {[%emt 00:00:18]} 15. cxb4 {[%clk 00:01:30]} {[%emt
00:00:02]} Qb6 {[%clk 00:01:14]} {[%emt 00:00:06]} 16. a5 {[%clk 00:01:22]}
{[%emt 00:00:09]} Qa7 {[%clk 00:01:13]} {[%emt 00:00:01]} 17. Nc2 {[%clk
00:01:10]} {[%emt 00:00:15]} Rac8 {[%clk 00:01:07]} {[%emt 00:00:08]} 18. Be3
{[%clk 00:01:11]} {[%emt 00:00:01]} Qd7 {[%clk 00:01:08]} 19. Qd2 {[%clk
00:01:09]} {[%emt 00:00:05]} Kh7 {[%clk 00:01:09]} 20. Rac1 {[%clk 00:01:06]}
{[%emt 00:00:05]} d5 {[%clk 00:01:08]} {[%emt 00:00:03]} 21. Bc5 {[%clk
00:01:04]} {[%emt 00:00:04]} Rfe8 {[%clk 00:01:09]} 22. Rcd1 {[%clk 00:00:27]}
{[%emt 00:00:39]} Bg4 {[%clk 00:01:01]} {[%emt 00:00:10]} 23. Ne3 {[%clk
00:00:23]} {[%emt 00:00:07]} Bxf3 {[%clk 00:00:45]} {[%emt 00:00:18]} 24. Bxf3
{[%clk 00:00:24]} dxe4 {[%clk 00:00:40]} {[%emt 00:00:07]} 25. dxe4 {[%clk
00:00:25]} {[%emt 00:00:01]} Qxd2 {[%clk 00:00:41]} 26. Rxd2 {[%clk 00:00:26]}
Nxa5 {[%clk 00:00:40]} {[%emt 00:00:02]} 27. bxa5 {[%clk 00:00:05]} {[%emt
00:00:24]} Rxc5 {[%clk 00:00:40]} {[%emt 00:00:01]} 28. Rd6 {[%clk 00:00:05]}
{[%emt 00:00:01]} Re6 {[%clk 00:00:35]} {[%emt 00:00:07]} 29. Rxe6 {[%clk
00:00:05]} {[%emt 00:00:03]} fxe6 {[%clk 00:00:36]} 30. Rd1 {[%clk 00:00:06]}
b4 {[%clk 00:00:34]} {[%emt 00:00:04]} 31. Rb1 {[%clk 00:00:08]} Rb5 {[%clk
00:00:30]} {[%emt 00:00:06]} 32. Be2 {[%clk 00:00:09]} {[%emt 00:00:01]} Rxa5
{[%clk 00:00:31]} 33. Rxb4 {[%clk 00:00:10]} Bf8 {[%clk 00:00:30]} {[%emt
00:00:03]} 34. Rb7+ {[%clk 00:00:11]} {[%emt 00:00:02]} Kh8 {[%clk 00:00:25]}
{[%emt 00:00:07]} 35. Rf7 {[%clk 00:00:10]} {[%emt 00:00:03]} Bg7 {[%clk
00:00:26]} {[%emt 00:00:01]} 36. Bc4 {[%clk 00:00:04]} {[%emt 00:00:08]} Nxe4
{[%clk 00:00:25]} {[%emt 00:00:03]} 37. Bxe6 {[%clk 00:00:05]} Ng5 {[%clk
00:00:16]} {[%emt 00:00:12]} 38. Re7 {[%clk 00:00:06]} Nxe6 {[%clk 00:00:14]}
{[%emt 00:00:04]} 39. Rxe6 {[%clk 00:00:07]} Ra1+ {[%clk 00:00:11]} {[%emt
00:00:04]} 40. Kg2 {[%clk 00:00:09]} a5 {[%clk 00:00:12]} 41. Rxg6 {[%clk
00:00:10]} {[%emt 00:00:01]} a4 {[%clk 00:00:13]} 42. Nf5 {[%clk 00:00:11]}
{[%emt 00:00:01]} Bf8 {[%clk 00:00:10]} {[%emt 00:00:05]} 43. Rf6 {[%clk
00:00:10]} {[%emt 00:00:03]} Kg8 {[%clk 00:00:10]} {[%emt 00:00:02]} 44. Nxh6+
{[%clk 00:00:11]} {[%emt 00:00:02]} Kg7 {[%clk 00:00:09]} {[%emt 00:00:03]} 45.
Rf7+ {[%clk 00:00:11]} {[%emt 00:00:03]} Kxh6 {[%clk 00:00:07]} {[%emt
00:00:03]} 46. Rxf8 {[%clk 00:00:12]} Rb1 {[%clk 00:00:04]} {[%emt 00:00:05]}
47. Ra8 {[%clk 00:00:12]} {[%emt 00:00:02]} Rb4 {[%clk 00:00:05]} 48. Ra5
{[%clk 00:00:11]} {[%emt 00:00:03]} e4 {[%clk 00:00:05]} {[%emt 00:00:02]} 49.
h4 {[%clk 00:00:10]} {[%emt 00:00:03]} Kg6 {[%clk 00:00:05]} {[%emt 00:00:03]}
50. g4 {[%clk 00:00:04]} {[%emt 00:00:08]} e3 {[%clk 00:00:05]} {[%emt
00:00:01]} 51. Kf3 {[%clk 00:00:04]} {[%emt 00:00:02]} exf2 {[%clk 00:00:06]}
{[%emt 00:00:01]} 52. Ra6+ {[%clk 00:00:05]} {[%emt 00:00:01]} Kg7 {[%clk
00:00:07]} 53. Kxf2 {[%clk 00:00:06]} {[%emt 00:00:01]} Rxg4 {[%clk 00:00:08]}
{[%emt 00:00:01]} 54. h5 {[%clk 00:00:07]} {[%emt 00:00:01]} Rh4 {[%clk
00:00:08]} {[%emt 00:00:01]} 55. Kg3 {[%clk 00:00:08]} {[%emt 00:00:01]} Rb4
{[%clk 00:00:09]} 56. Kf3 {[%clk 00:00:09]} {[%emt 00:00:01]} Kh7 {[%clk
00:00:10]} {[%emt 00:00:01]} 1/2-1/2

[Event "UK Open Blitz Championships 2024 - London Qualifier"]
[Site "London, United Kingdom"]
[Date "2024.09.21"]
[Round "11.3"]
[White "Korshunov, Sergey"]
[Black "Badacsonyi, Stanley"]
[Result "1-0"]
[TimeControl "3 minutes + 2 seconds incr. from move 1"]
[WhiteTitle "FM"]
[BlackTitle "FM"]
[WhiteFideId "34274715"]
[BlackFideId "486973"]
[WhiteElo "2278"]
[BlackElo "2332"]

1. d4 {[%clk 00:03:04]} Nf6 {[%clk 00:03:03]} {[%emt 00:00:01]} 2. c4 {[%clk
00:03:05]} c5 {[%clk 00:03:05]} 3. Nf3 {[%clk 00:03:03]} {[%emt 00:00:04]} g6
{[%clk 00:03:05]} {[%emt 00:00:01]} 4. Nc3 {[%clk 00:03:04]} {[%emt 00:00:01]}
Bg7 {[%clk 00:03:07]} 5. d5 {[%clk 00:03:05]} {[%emt 00:00:02]} d6 {[%clk
00:03:08]} {[%emt 00:00:01]} 6. g3 {[%clk 00:03:03]} {[%emt 00:00:04]} O-O
{[%clk 00:03:07]} {[%emt 00:00:02]} 7. Bg2 {[%clk 00:03:04]} a6 {[%clk
00:03:08]} 8. a4 {[%clk 00:03:04]} {[%emt 00:00:02]} e6 {[%clk 00:03:05]}
{[%emt 00:00:05]} 9. O-O {[%clk 00:03:05]} {[%emt 00:00:01]} exd5 {[%clk
00:03:06]} {[%emt 00:00:01]} 10. cxd5 {[%clk 00:03:06]} Re8 {[%clk 00:03:07]}
11. Bf4 {[%clk 00:03:07]} Bf5 {[%clk 00:03:03]} {[%emt 00:00:07]} 12. Re1
{[%clk 00:03:03]} {[%emt 00:00:05]} Ne4 {[%clk 00:03:03]} {[%emt 00:00:01]} 13.
Rc1 {[%clk 00:02:50]} {[%emt 00:00:15]} Qb6 {[%clk 00:03:02]} {[%emt 00:00:04]}
14. Nd2 {[%clk 00:02:02]} {[%emt 00:00:50]} Nxd2 {[%clk 00:02:41]} {[%emt
00:00:24]} 15. Qxd2 {[%clk 00:02:03]} {[%emt 00:00:01]} Bc8 {[%clk 00:02:25]}
{[%emt 00:00:17]} 16. a5 {[%clk 00:01:51]} {[%emt 00:00:15]} Qd8 {[%clk
00:02:13]} {[%emt 00:00:14]} 17. Na4 {[%clk 00:01:48]} {[%emt 00:00:05]} Ra7
{[%clk 00:01:56]} {[%emt 00:00:20]} 18. b4 {[%clk 00:01:46]} {[%emt 00:00:05]}
Bd7 {[%clk 00:01:45]} {[%emt 00:00:13]} 19. Nb6 {[%clk 00:01:42]} {[%emt
00:00:06]} Bb5 {[%clk 00:01:45]} {[%emt 00:00:02]} 20. bxc5 {[%clk 00:01:40]}
{[%emt 00:00:04]} dxc5 {[%clk 00:01:46]} {[%emt 00:00:01]} 21. Rxc5 {[%clk
00:01:23]} {[%emt 00:00:18]} Nd7 {[%clk 00:01:43]} {[%emt 00:00:05]} 22. Bc7
{[%clk 00:01:23]} {[%emt 00:00:02]} Qf6 {[%clk 00:01:26]} {[%emt 00:00:19]} 23.
Nxd7 {[%clk 00:01:21]} {[%emt 00:00:04]} Bxd7 {[%clk 00:01:27]} {[%emt
00:00:01]} 24. d6 {[%clk 00:01:23]} {[%emt 00:00:01]} Re6 {[%clk 00:01:06]}
{[%emt 00:00:23]} 25. e4 {[%clk 00:01:22]} {[%emt 00:00:03]} Ra8 {[%clk
00:01:06]} {[%emt 00:00:02]} 26. e5 {[%clk 00:01:22]} {[%emt 00:00:01]} Qf5
{[%clk 00:01:05]} {[%emt 00:00:03]} 27. Be4 {[%clk 00:01:06]} {[%emt 00:00:18]}
Qh5 {[%clk 00:01:05]} {[%emt 00:00:01]} 28. Bxb7 {[%clk 00:01:06]} {[%emt
00:00:02]} Ra7 {[%clk 00:00:56]} {[%emt 00:00:12]} 29. Bc6 {[%clk 00:01:03]}
{[%emt 00:00:05]} Bxc6 {[%clk 00:00:48]} {[%emt 00:00:10]} 30. Rxc6 {[%clk
00:01:04]} {[%emt 00:00:01]} Bxe5 {[%clk 00:00:35]} {[%emt 00:00:14]} 31. d7
{[%clk 00:00:58]} {[%emt 00:00:08]} Bxc7 {[%clk 00:00:36]} {[%emt 00:00:01]} 32.
Rxc7 {[%clk 00:00:58]} {[%emt 00:00:02]} Rxe1+ {[%clk 00:00:37]} {[%emt
00:00:01]} 33. Qxe1 {[%clk 00:01:00]} {[%emt 00:00:01]} Ra8 {[%clk 00:00:35]}
{[%emt 00:00:04]} 34. Rc8+ {[%clk 00:01:01]} 1-0

[Event "UK Open Blitz Championships 2024 - London Qualifier"]
[Site "London, United Kingdom"]
[Date "2024.09.21"]
[Round "11.4"]
[White "Mirzoeva, Elmira"]
[Black "Turner, Max N"]
[Result "0-1"]
[TimeControl "3 minutes + 2 seconds incr. from move 1"]
[WhiteTitle "WGM"]
[BlackTitle "CM"]
[WhiteFideId "4127951"]
[BlackFideId "447722"]
[WhiteElo "2094"]
[BlackElo "2157"]

1. d4 {[%clk 00:03:02]} {[%emt 00:00:01]} d5 {[%clk 00:03:04]} 2. c4 {[%clk
00:03:03]} {[%emt 00:00:01]} e6 {[%clk 00:03:05]} 3. Nc3 {[%clk 00:03:03]}
{[%emt 00:00:02]} Be7 {[%clk 00:03:07]} 4. Nf3 {[%clk 00:03:01]} {[%emt
00:00:05]} Nf6 {[%clk 00:03:08]} 5. cxd5 {[%clk 00:03:00]} {[%emt 00:00:03]}
exd5 {[%clk 00:03:08]} 6. Bg5 {[%clk 00:03:00]} {[%emt 00:00:01]} c6 {[%clk
00:03:07]} {[%emt 00:00:04]} 7. e3 {[%clk 00:02:59]} {[%emt 00:00:03]} O-O
{[%clk 00:03:07]} {[%emt 00:00:01]} 8. Qc2 {[%clk 00:02:58]} {[%emt 00:00:04]}
h6 {[%clk 00:03:08]} {[%emt 00:00:01]} 9. Bh4 {[%clk 00:02:58]} {[%emt
00:00:02]} Re8 {[%clk 00:03:09]} 10. Bd3 {[%clk 00:02:51]} {[%emt 00:00:09]}
Nbd7 {[%clk 00:03:10]} 11. O-O {[%clk 00:02:51]} {[%emt 00:00:02]} Ne4 {[%clk
00:03:08]} {[%emt 00:00:05]} 12. Bxe7 {[%clk 00:02:48]} {[%emt 00:00:04]} Qxe7
{[%clk 00:03:09]} {[%emt 00:00:02]} 13. Bxe4 {[%clk 00:02:39]} {[%emt
00:00:11]} dxe4 {[%clk 00:03:10]} 14. Nd2 {[%clk 00:02:40]} {[%emt 00:00:01]}
Nf6 {[%clk 00:03:11]} 15. Nc4 {[%clk 00:02:24]} {[%emt 00:00:18]} Bf5 {[%clk
00:03:05]} {[%emt 00:00:08]} 16. Rfd1 {[%clk 00:02:18]} {[%emt 00:00:07]} Rad8
{[%clk 00:03:02]} {[%emt 00:00:06]} 17. a3 {[%clk 00:02:17]} {[%emt 00:00:04]}
Ng4 {[%clk 00:02:37]} {[%emt 00:00:26]} 18. h3 {[%clk 00:01:45]} {[%emt
00:00:33]} Nf6 {[%clk 00:02:39]} 19. Ne5 {[%clk 00:01:44]} {[%emt 00:00:03]}
Nd7 {[%clk 00:02:26]} {[%emt 00:00:14]} 20. Nxd7 {[%clk 00:01:12]} {[%emt
00:00:34]} Qxd7 {[%clk 00:02:27]} 21. d5 {[%clk 00:01:12]} {[%emt 00:00:02]} c5
{[%clk 00:02:21]} {[%emt 00:00:08]} 22. Qe2 {[%clk 00:01:02]} {[%emt 00:00:13]}
Re5 {[%clk 00:01:57]} {[%emt 00:00:26]} 23. Qh5 {[%clk 00:00:45]} {[%emt
00:00:19]} Qd6 {[%clk 00:01:45]} {[%emt 00:00:14]} 24. Rd2 {[%clk 00:00:32]}
{[%emt 00:00:15]} a6 {[%clk 00:01:37]} {[%emt 00:00:09]} 25. Rad1 {[%clk
00:00:27]} {[%emt 00:00:07]} b5 {[%clk 00:01:35]} {[%emt 00:00:04]} 26. Qh4
{[%clk 00:00:23]} {[%emt 00:00:06]} Bg6 {[%clk 00:01:23]} {[%emt 00:00:14]} 27.
Qf4 {[%clk 00:00:20]} {[%emt 00:00:05]} b4 {[%clk 00:01:13]} {[%emt 00:00:12]}
28. axb4 {[%clk 00:00:13]} {[%emt 00:00:09]} cxb4 {[%clk 00:01:14]} 29. Ne2
{[%clk 00:00:14]} f6 {[%clk 00:00:58]} {[%emt 00:00:18]} 30. h4 {[%clk
00:00:14]} {[%emt 00:00:02]} Bh5 {[%clk 00:00:50]} {[%emt 00:00:10]} 31. g4
{[%clk 00:00:13]} {[%emt 00:00:03]} Bf7 {[%clk 00:00:34]} {[%emt 00:00:18]} 32.
Ng3 {[%clk 00:00:13]} {[%emt 00:00:01]} g5 {[%clk 00:00:28]} {[%emt 00:00:08]}
33. hxg5 {[%clk 00:00:11]} {[%emt 00:00:04]} hxg5 {[%clk 00:00:29]} {[%emt
00:00:01]} 34. Nxe4 {[%clk 00:00:10]} {[%emt 00:00:03]} gxf4 {[%clk 00:00:27]}
{[%emt 00:00:04]} 35. Nxd6 {[%clk 00:00:11]} Rxd6 {[%clk 00:00:28]} {[%emt
00:00:01]} 36. Ra1 {[%clk 00:00:06]} {[%emt 00:00:07]} fxe3 {[%clk 00:00:24]}
{[%emt 00:00:06]} 37. fxe3 {[%clk 00:00:08]} Rxe3 {[%clk 00:00:21]} {[%emt
00:00:05]} 38. Ra4 {[%clk 00:00:06]} {[%emt 00:00:03]} Rg3+ {[%clk 00:00:19]}
{[%emt 00:00:04]} 39. Kf2 {[%clk 00:00:08]} {[%emt 00:00:01]} Rxg4 {[%clk
00:00:20]} 40. Kf3 {[%clk 00:00:09]} Rc4 {[%clk 00:00:17]} {[%emt 00:00:05]} 41.
Ke3 {[%clk 00:00:08]} {[%emt 00:00:03]} f5 {[%clk 00:00:09]} {[%emt 00:00:10]}
42. b3 {[%clk 00:00:06]} {[%emt 00:00:03]} Rc3+ {[%clk 00:00:10]} {[%emt
00:00:01]} 43. Kf4 {[%clk 00:00:08]} Rxd5 {[%clk 00:00:07]} {[%emt 00:00:05]}
44. Rg2+ {[%clk 00:00:08]} {[%emt 00:00:02]} Kf8 {[%clk 00:00:07]} {[%emt
00:00:02]} 45. Rxa6 {[%clk 00:00:09]} Rc8 {[%clk 00:00:04]} {[%emt 00:00:05]}
46. Rb6 {[%clk 00:00:08]} {[%emt 00:00:03]} Rd3 {[%clk 00:00:04]} {[%emt
00:00:02]} 47. Rxb4 {[%clk 00:00:08]} {[%emt 00:00:02]} Rxb3 {[%clk 00:00:04]}
{[%emt 00:00:02]} 48. Rxb3 {[%clk 00:00:09]} Bxb3 {[%clk 00:00:05]} {[%emt
00:00:01]} 49. Kxf5 {[%emt 00:00:01]} Rc5+ {[%clk 00:00:06]} 50. Kf6 {[%clk
00:00:11]} {[%emt 00:00:02]} Rc6+ {[%clk 00:00:07]} 51. Ke5 {[%clk 00:00:12]}
Ke7 {[%clk 00:00:08]} 52. Rg7+ {[%clk 00:00:13]} {[%emt 00:00:01]} Bf7 {[%clk
00:00:09]} 53. Rh7 {[%clk 00:00:14]} Rc5+ {[%clk 00:00:11]} 54. Kd4 {[%emt
00:00:04]} Ra5 {[%clk 00:00:10]} 55. Kc3 {[%clk 00:00:13]} {[%emt 00:01:31]}
Rg5 {[%clk 00:00:08]} {[%emt 00:00:04]} 56. Kd4 {[%clk 00:00:14]} Ke6 {[%clk
00:00:08]} {[%emt 00:00:02]} 57. Rh6+ {[%clk 00:00:14]} {[%emt 00:00:02]} Bg6
{[%clk 00:00:10]} 58. Rh8 {[%clk 00:00:13]} {[%emt 00:00:03]} Rg4+ {[%clk
00:00:07]} {[%emt 00:00:05]} 59. Ke3 {[%clk 00:00:13]} {[%emt 00:00:01]} Ke5
{[%clk 00:00:06]} {[%emt 00:00:03]} 60. Rb8 {[%clk 00:00:13]} {[%emt 00:00:02]}
Rg3+ {[%clk 00:00:05]} {[%emt 00:00:03]} 61. Kf2 {[%clk 00:00:14]} Rc3 {[%clk
00:00:06]} 62. Rb5+ {[%clk 00:00:14]} {[%emt 00:00:02]} Kf4 {[%emt 00:00:06]}
63. Rb8 {[%clk 00:00:10]} Rc2+ {[%clk 00:00:08]} {[%emt 00:00:01]} 64. Kf1
{[%clk 00:00:08]} {[%emt 00:00:03]} Ke3 {[%clk 00:00:07]} {[%emt 00:00:04]} 65.
Rb6 {[%clk 00:00:03]} {[%emt 00:00:08]} Be4 {[%clk 00:00:08]} {[%emt 00:00:01]}
66. Re6 {[%clk 00:00:00]} {[%emt 00:00:04]} 0-1